[Event "36th Balaton Open A 2018"]
[Site "Balatonlelle"]
[Date "2018.06.20"]
[Round "9"]
[White "Tancsa, Tamas"]
[Black "Suta, Andraz"]
[Result "0-1"]
[ECO "C96"]
[WhiteElo "1965"]
[BlackElo "2239"]
[Annotator "RC"]
[PlyCount "98"]
[EventDate "2018.06.12"]
[EventType "swiss"]
[EventCountry "HUN"]
[SourceTitle "playchess.com"]
[Source "ChessBase"]
[SourceQuality "1"]
[TimeControl "40/5400+30:1800+30"]

1. e4 {[%emt 0:00:04]} e5 {[%emt 0:00:36]} 2. Nf3 {[%emt 0:00:15]} Nc6 {[%emt 0:00:02]} 3. Bb5 {[%emt 0:00:40]} a6 {[%emt 0:00:01]} 4. Ba4 {[%emt 0:00:19]} Nf6 {[%emt 0:00:06]} 5. O-O {[%emt 0:00:16]} Be7 {[%emt 0:00:05]} 6. Re1 {[%emt 0:00:17]} b5 {[%emt 0:00:49]} 7. Bb3 {[%emt 0:00:11]} d6 {[%emt 0:06:03]} 8. c3 {[%emt 0:00:19]} O-O {[%emt 0:00:06]} 9. h3 {[%emt 0:00:12]} Na5 {[%emt 0:00:09]} 10. Bc2 {[%emt 0:00:15]} c5 {[%emt 0:00:06]} 11. d4 {[%emt 0:00:16]} Nd7 {[%emt 0:10:45]} 12. d5 {[%emt 0:00:46]} Nb6 {[%emt 0:01:54]} 13. Nbd2 {[%emt 0:00:32]} Nb7 {[%emt 0:10:24]} 14. Nf1 {[%emt 0:00:37]} c4 {[%emt 0:00:52]} 15. Be3 {[%emt 0:00:16]} Qc7 {[%emt 0:01:37]} 16. g4 {[%emt 0:02:18]} Nc5 {[%emt 0:17:19]} 17. Ng3 {[%emt 0:00:14]} a5 {[%emt 0:00:32]} 18. a3 {[%emt 0:02:08]} Bd7 {[%emt 0:05:01]} 19. Nf5 {[%emt 0:02:30]} Bxf5 {[%emt 0:02:16]} 20. gxf5 {[%emt 0:00:07]} Nbd7 {[%emt 0:08:18]} 21. Kh2 {[%emt 0:03:20]} Rab8 {[%emt 0:01:49]} 22. Rg1 {[%emt 0:02:05]} Kh8 {[%emt 0:00:07]} 23. Qf1 {[%emt 0:01:27]} Rg8 {[%emt 0:05:01]} 24. Rg3 {[%emt 0:00:21]} Qd8 {[%emt 0:03:26]} 25. Qg2 {[%emt 0:01:04]} b4 {[%emt 0:00:51]} 26. Rg1 {[%emt 0:00:38]} Qf8 {[%emt 0:01:03]} 27. axb4 {[%emt 0:02:06]} axb4 {[%emt 0:00:08]} 28. Bd2 {[%emt 0:00:14]} bxc3 {[%emt 0:10:50]} 29. Bxc3 {[%emt 0:00:13]} Nd3 {[%emt 0:00:08]} 30. Bxd3 {[%emt 0:00:27]} cxd3 {[%emt 0:00:00]} 31. Nd2 {[%emt 0:00:20]} Nc5 {[%emt 0:01:15]} 32. f4 {[%emt 0:01:16]} Bf6 {[%emt 0:00:40]} 33. fxe5 {[%emt 0:00:18]} Bxe5 {[%emt 0:00:32]} 34. Bxe5 dxe5 {[%emt 0:00:01]} 35. Nc4 {[%emt 0:00:24]} f6 {[%emt 0:00:35]} 36. Rg4 {[%emt 0:12:25]} Rb4 {[%emt 0:08:48]} 37. Rh4 {[%emt 0:00:24]} h6 {[%emt 0:00:47]} 38. Nd6 {[%emt 0:00:27]} Rb6 {[%emt 0:02:54]} 39. Nc4 {[%emt 0:01:28]} Rb4 {[%emt 0:00:05]} 40. Na5 {[%emt 0:00:00]} d2 {[%emt 0:02:54]} 41. Nc6 {[%emt 0:04:13]} Rb7 {[%emt 0:08:54]} 42. Qxd2 {[%emt 0:01:37]} Nb3 {[%emt 0:00:40]} 43. Qg2 {[%emt 0:02:28]} Nd4 {[%emt 0:00:07]} 44. Nxd4 {[%emt 0:00:36]} exd4 {[%emt 0:00:01]} 45. Kh1 {[%emt 0:03:39]} Qf7 {[%emt 0:07:33]} 46. Qd2 {[%emt 0:02:36]} Rgb8 {[%emt 0:00:20]} 47. Rg6 {[%emt 0:01:21]} Qf8 {[%emt 0:02:46]} 48. Qxd4 {[%emt 0:04:02]} Rxb2 {[%emt 0:03:53]} 49. Rhg4 {[%emt 0:04:10]} Qd6 {[%emt 0:04:10]} 0-1

[Event "36th Balaton Open A 2018"]
[Site "Balatonlelle"]
[Date "2018.06.20"]
[Round "9"]
[White "Gorti, Atmika"]
[Black "Trajber, Daniel"]
[Result "1/2-1/2"]
[ECO "B22"]
[WhiteElo "1607"]
[BlackElo "2022"]
[Annotator "NA RC"]
[PlyCount "112"]
[EventDate "2018.06.12"]
[EventType "swiss"]
[EventCountry "HUN"]
[SourceTitle "playchess.com"]
[Source "ChessBase"]
[SourceQuality "1"]
[TimeControl "40/5400+30:1800+30"]

{[%evp 15,110,-25,32767,32767,-25,-8,32767,7,32767,0,32767,32767,7,2,13,0,32767,0,27,0,0,0,0,0,8,32767,60,13,52,32,18,32767,24,-4,0,-4,0,-7,0,0,0,0,31,27,32767,32767,10,80,14,32767,32767,32767,32767,2,32767,32767,28,0,32767,3,32767,32767,32767,32767,32767,32767,32767,32767,32767,32767,32767,32767,32767,32767,-307,-232,-90,-96,4,4,16,32767,32767,32767,32767,32767,32767,32767,34,25,29,33,28,25,67,0,522]} 1. e4 {[%emt 0:00:04]} c5 {[%emt 0:04:39]} 2. c3 {[%emt 0:00:08]} Nf6 {[%emt 0:00:20]} 3. e5 {[%emt 0:00:16]} Nd5 {[%emt 0:00:10]} 4. d4 {[%emt 0:00:19]} e6 {[%emt 0:00:30]} 5. Nf3 {[%emt 0:01:11]} cxd4 {[%emt 0:01:31]} 6. cxd4 {[%emt 0:00:23]} Nc6 {[%emt 0:00:42]} 7. Be2 {[%emt 0:03:34] B22: Sicilian: 2 c3} (7. Bc4 d6 8. O-O Be7 9. exd6 Qxd6 10. Nc3 O-O 11. Re1 Nxc3 12. bxc3 b6 13. Bd3 Bb7 14. Qe2 g6 15. Qe3 Bf6 16. Qh6 Bg7 17. Qh4 Ne7 18. Ng5 h5 19. Be4 Nf5 20. Qh3 Bxe4 21. Nxe4 {1-0 (41) Radjabov,T (2710)-Moiseenko,A (2648) Bastia 2016}) 7... d6 {[%emt 0:02:15]} 8. exd6 {[%emt 0:01:02]} Bxd6 {[%emt 0:00:38]} 9. O-O {[%emt 0:00:43]} O-O {[%emt 0:01:32]} 10. Nc3 {[%emt 0:01:09]} Nf4 {[%emt 0:03:48]} 11. Bxf4 $146 {[%emt 0:03:18]} ({Predecessor:} 11. Ne4 Bc7 12. Re1 Nxe2+ 13. Rxe2 e5 14. d5 Nd4 15. Nxd4 Qxd5 16. Qc2 Qxd4 {1-0 (69) Rosandic,A (2025)-Belamaric,T (2175) Pula 1993}) 11... Bxf4 {[%emt 0:00:24]} 12. d5 {[%emt 0:00:17]} exd5 {[%emt 0:02:17]} 13. Nxd5 {[%emt 0:00:41]} Bb8 {[%emt 0:01:41]} 14. Qd3 {[%emt 0:04:24]} Qd6 {[%emt 0:07:26]} 15. Nc3 {[%emt 0:10:10]} Qh6 {[%emt 0:02:59]} 16. Qe4 {[%emt 0:10:58]} g5 {[%emt 0:09:26]} 17. g3 {[%emt 0:04:49]} f5 {[%emt 0:03:29]} 18. Bc4+ {[%emt 0:03:14]} Kh8 {[%emt 0:00:18]} 19. Qd5 {[%emt 0:02:24]} g4 {[%emt 0:04:38]} 20. Nh4 {[%emt 0:02:17]} Ne5 {[%emt 0:01:38]} (20... Rd8 $11 21. Qf7 (21. Nxf5 $2 Qf8 $19) 21... Rf8) 21. Qd4 {[%emt 0:03:01]} Qg7 {[%emt 0:01:49]} 22. Bb3 {[%emt 0:02:52]} Bd7 {[%emt 0:04:03]} 23. Rad1 {[%emt 0:04:45]} Bc6 {[%emt 0:06:12]} 24. Bd5 {[%emt 0:02:20]} Bc7 {[%emt 0:02:16]} 25. Bxc6 {[%emt 0:02:08]} bxc6 {[%emt 0:00:15]} 26. Ne2 {[%emt 0:01:49]} Bb6 {[%emt 0:01:42]} 27. Qc3 {[%emt 0:00:59]} Bd8 $1 {[%emt 0:01:26]} 28. f4 {[%emt 0:06:52]} gxf3 {[%emt 0:04:43]} 29. Nxf3 {[%emt 0:00:19]} Bb6+ {[%emt 0:06:35]} 30. Kg2 {[%emt 0:02:10]} Ng4 {[%emt 0:03:10]} 31. Qxg7+ $1 {[%emt 0:00:24]} Kxg7 {[%emt 0:00:03]} 32. Rd7+ {[%emt 0:00:12]} Rf7 {[%emt 0:01:29]} 33. Rxf7+ {[%emt 0:00:19]} Kxf7 {[%emt 0:00:01]} 34. Kh3 {[%emt 0:01:13]} Nf2+ {[%emt 0:01:51]} 35. Kh4 {[%emt 0:01:08]} Re8 {[%emt 0:02:58]} 36. Nf4 {[%emt 0:03:47]} h6 {[%emt 0:04:39]} 37. Kh5 {[%emt 0:03:48]} Ne4 {[%emt 0:01:33]} 38. Rc1 {[%emt 0:05:48]} c5 {[%emt 0:05:22]} 39. Nd3 {[%emt 0:02:21]} Kf6 {[%emt 0:01:55]} 40. Nf4 {[%emt 0:00:00]} Rd8 {[%emt 0:01:53]} 41. Ng6 {[%emt 0:10:08]} Kg7 {[%emt 0:03:34]} 42. Nge5 {[%emt 0:04:09]} Rd5 {[%emt 0:02:19]} 43. Kh4 {[%emt 0:02:28]} Ng5 {[%emt 0:02:24]} 44. Rf1 {[%emt 0:04:02] [#]} Bd8 $1 {[%emt 0:01:09]} 45. Kh5 {[%emt 0:01:38] [#]} Ne4 {[%emt 0:01:40]} (45... Ne6 $1 $19 {is more deadly.} 46. Nc6 Bf6) 46. Nc4 {[%emt 0:03:15]} Nf6+ {[%emt 0:12:26]} (46... Rd3 $17 47. b3 Rc3) 47. Kh4 {[%emt 0:00:45]} Ng4+ {[%emt 0:02:05]} 48. Kh3 {[%emt 0:01:45]} Bf6 {[%emt 0:00:24]} 49. b3 {[%emt 0:01:06]} Bd4 {[%emt 0:02:22]} 50. Kg2 {[%emt 0:03:01]} Kf6 {[%emt 0:01:48]} 51. Re1 {[%emt 0:04:19]} Ne5 {[%emt 0:00:47]} 52. Nfxe5 {[%emt 0:00:40]} Bxe5 {[%emt 0:00:02]} 53. Kf3 {[%emt 0:00:43]} Rd3+ $11 {[%emt 0:00:20] und Schwarz muss sich keine Sorgen machen.} 54. Re3 {[%emt 0:00:49]} (54. Ke2 Rd4) 54... Rd5 {[%emt 0:00:22]} 55. Re1 {[%emt 0:00:18]} (55. Nxe5 $16 Rxe5 56. Rd3) 55... h5 $18 {[%emt 0:00:39]} 56. Re2 {[%emt 0:01:00]} Rd3+ {[%emt 0:00:34]} 1/2-1/2